[Event "Live Chess"]
[Site "Chess.com"]
[Date "2024.06.02"]
[Round "-"]
[White "upoe610"]
[Black "JanMur7"]
[Result "1-0"]
[WhiteElo "2166"]
[BlackElo "2263"]
[TimeControl "300"]
[EndTime "8:44:08 PDT"]
[Termination "upoe610 won by resignation"]

1. c4 {[%clk 0:04:57.5]} 1... c5 {[%clk 0:04:58.5]} 2. g3 {[%clk 0:04:56.4]}
2... Nc6 {[%clk 0:04:57.8]} 3. Bg2 {[%clk 0:04:54.9]} 3... g6 {[%clk 0:04:57.7]}
4. Nc3 {[%clk 0:04:54.1]} 4... Bg7 {[%clk 0:04:57.3]} 5. Nf3 {[%clk 0:04:52.7]}
5... e6 {[%clk 0:04:56.6]} 6. d4 {[%clk 0:04:51.3]} 6... cxd4 {[%clk 0:04:55.7]}
7. Nb5 {[%clk 0:04:50]} 7... d5 {[%clk 0:04:55.3]} 8. cxd5 {[%clk 0:04:46.4]}
8... Qxd5 {[%clk 0:04:50.1]} 9. Nc7+ {[%clk 0:04:43.1]} 9... Kf8 {[%clk
0:04:45.4]} 10. Nxd5 {[%clk 0:04:42.2]} 10... d3 {[%clk 0:04:43.7]} 11. Qxd3
{[%clk 0:04:39.7]} 1-0

[Event "Live Chess"]
[Site "Chess.com"]
[Date "2024.06.02"]
[Round "-"]
[White "JohanKjeldahl"]
[Black "MagnersCarlsberg2870"]
[Result "1-0"]
[WhiteElo "1817"]
[BlackElo "1746"]
[TimeControl "300"]
[EndTime "8:44:12 PDT"]
[Termination "JohanKjeldahl won by resignation"]

1. c4 {[%clk 0:04:55.7]} 1... e5 {[%clk 0:04:57.8]} 2. Nc3 {[%clk 0:04:54.3]}
2... Bb4 {[%clk 0:04:56.8]} 3. Nd5 {[%clk 0:04:51.9]} 3... Ba5 {[%clk
0:04:54.4]} 4. e3 {[%clk 0:04:49.7]} 4... c6 {[%clk 0:04:51.7]} 5. Nc3 {[%clk
0:04:48.4]} 5... Bxc3 {[%clk 0:04:50.6]} 6. dxc3 {[%clk 0:04:45.6]} 6... d6
{[%clk 0:04:48.1]} 7. Nf3 {[%clk 0:04:44.5]} 7... f6 {[%clk 0:04:46.7]} 8. Be2
{[%clk 0:04:43.4]} 8... Bf5 {[%clk 0:04:43.5]} 9. O-O {[%clk 0:04:41.1]} 9...
Ne7 {[%clk 0:04:42.1]} 10. Qb3 {[%clk 0:04:35.9]} 10... b6 {[%clk 0:04:38.5]}
11. Rd1 {[%clk 0:04:30.9]} 11... Be6 {[%clk 0:04:14.7]} 12. e4 {[%clk
0:04:26.4]} 12... O-O {[%clk 0:04:12.6]} 13. Qc2 {[%clk 0:04:23]} 13... f5
{[%clk 0:04:10.8]} 14. Nxe5 {[%clk 0:04:12.3]} 14... Qc7 {[%clk 0:04:04.3]} 15.
Nf3 {[%clk 0:04:08.1]} 15... fxe4 {[%clk 0:04:03]} 16. Qxe4 {[%clk 0:04:05.8]}
16... Bf5 {[%clk 0:04:00.8]} 17. Qh4 {[%clk 0:03:59.9]} 17... Ng6 {[%clk
0:03:55.9]} 18. Qg3 {[%clk 0:03:54.8]} 18... Rd8 {[%clk 0:03:46.6]} 19. Bg5
{[%clk 0:03:47.1]} 19... Rd7 {[%clk 0:03:44.7]} 20. Nd4 {[%clk 0:03:45.4]} 20...
Bc2 {[%clk 0:03:23.7]} 21. Nxc2 {[%clk 0:03:43.2]} 1-0

[Event "Live Chess"]
[Site "Chess.com"]
[Date "2024.06.02"]
[Round "-"]
[White "HoarseyHorsey"]
[Black "willc-h99"]
[Result "0-1"]
[WhiteElo "1570"]
[BlackElo "2546"]
[TimeControl "300"]
[EndTime "8:44:19 PDT"]
[Termination "willc-h99 won by resignation"]

1. d4 {[%clk 0:04:57]} 1... c6 {[%clk 0:04:59.2]} 2. c4 {[%clk 0:04:55.9]} 2...
g6 {[%clk 0:04:55.7]} 3. Nf3 {[%clk 0:04:54.6]} 3... Bg7 {[%clk 0:04:52.8]} 4.
Nc3 {[%clk 0:04:53.6]} 4... a6 {[%clk 0:04:51.4]} 5. e4 {[%clk 0:04:51.3]} 5...
b5 {[%clk 0:04:50.6]} 6. cxb5 {[%clk 0:04:50.1]} 6... axb5 {[%clk 0:04:49.3]} 7.
Bd3 {[%clk 0:04:49.2]} 7... d6 {[%clk 0:04:44.9]} 8. O-O {[%clk 0:04:48.1]} 8...
Nf6 {[%clk 0:04:44.2]} 9. Bg5 {[%clk 0:04:45.9]} 9... O-O {[%clk 0:04:42.8]} 10.
e5 {[%clk 0:04:45.2]} 10... dxe5 {[%clk 0:04:34.5]} 11. dxe5 {[%clk 0:04:45.1]}
11... Ng4 {[%clk 0:04:26]} 12. h3 {[%clk 0:04:40.8]} 12... Nxe5 {[%clk
0:04:23.7]} 13. Nxe5 {[%clk 0:04:39.1]} 13... Bxe5 {[%clk 0:04:23.6]} 14. Re1
{[%clk 0:04:37.2]} 14... Bf6 {[%clk 0:04:21]} 15. Bh6 {[%clk 0:04:36]} 15... Re8
{[%clk 0:04:19.9]} 16. Qf3 {[%clk 0:04:32.9]} 16... Bb7 {[%clk 0:04:12.8]} 17.
Rad1 {[%clk 0:04:31.4]} 17... Nd7 {[%clk 0:04:08.6]} 18. Ne4 {[%clk 0:04:22.3]}
18... Bxb2 {[%clk 0:04:03.1]} 19. Rd2 {[%clk 0:04:07.2]} 19... Bf6 {[%clk
0:03:47.2]} 20. Red1 {[%clk 0:03:57.8]} 20... Ne5 {[%clk 0:03:40.3]} 21. Nxf6+
{[%clk 0:03:54.3]} 21... exf6 {[%clk 0:03:40.2]} 22. Qxf6 {[%clk 0:03:50.2]}
22... Qxf6 {[%clk 0:03:33.2]} 0-1

[Event "Live Chess"]
[Site "Chess.com"]
[Date "2024.06.02"]
[Round "-"]
[White "ACM42"]
[Black "KyryloPoluliakh"]
[Result "1-0"]
[WhiteElo "2148"]
[BlackElo "1531"]
[TimeControl "300"]
[EndTime "8:44:42 PDT"]
[Termination "ACM42 won by checkmate"]

1. e4 {[%clk 0:04:57.5]} 1... c5 {[%clk 0:04:57.1]} 2. Nf3 {[%clk 0:04:55.6]}
2... Nc6 {[%clk 0:04:52.3]} 3. d4 {[%clk 0:04:54.8]} 3... cxd4 {[%clk
0:04:48.9]} 4. Nxd4 {[%clk 0:04:54.7]} 4... g6 {[%clk 0:04:46.4]} 5. Nc3 {[%clk
0:04:53.6]} 5... Bg7 {[%clk 0:04:41.9]} 6. Be3 {[%clk 0:04:53.1]} 6... Nf6
{[%clk 0:04:38]} 7. Nxc6 {[%clk 0:04:52.4]} 7... bxc6 {[%clk 0:04:33.8]} 8. e5
{[%clk 0:04:51.9]} 8... Ng8 {[%clk 0:04:25.8]} 9. f4 {[%clk 0:04:50.7]} 9... d6
{[%clk 0:04:20.1]} 10. Qf3 {[%clk 0:04:47.6]} 10... dxe5 {[%clk 0:04:12.3]} 11.
Rd1 {[%clk 0:04:41.5]} 11... Qc7 {[%clk 0:04:04.7]} 12. Nb5 {[%clk 0:04:17.6]}
12... Qb7 {[%clk 0:03:45.8]} 13. Nxa7 {[%clk 0:03:34.9]} 13... Rxa7 {[%clk
0:03:35.7]} 14. Bxa7 {[%clk 0:03:34.1]} 14... Qxa7 {[%clk 0:03:34.3]} 15. Qxc6+
{[%clk 0:03:33.2]} 15... Bd7 {[%clk 0:03:32.2]} 16. Rxd7 {[%clk 0:03:32.4]}
16... Qxd7 {[%clk 0:03:29.8]} 17. Qa8+ {[%clk 0:03:30.8]} 17... Qd8 {[%clk
0:03:28.6]} 18. Bb5+ {[%clk 0:03:30.2]} 18... Kf8 {[%clk 0:03:21.8]} 19. Qxd8#
{[%clk 0:03:30.1]} 1-0

[Event "Live Chess"]
[Site "Chess.com"]
[Date "2024.06.02"]
[Round "-"]
[White "kylet1990"]
[Black "BigAl"]
[Result "0-1"]
[WhiteElo "780"]
[BlackElo "2539"]
[TimeControl "300"]
[EndTime "8:44:57 PDT"]
[Termination "BigAl won by resignation"]

1. e4 {[%clk 0:04:52.7]} 1... e6 {[%clk 0:04:51.3]} 2. d4 {[%clk 0:04:50.8]}
2... b6 {[%clk 0:04:48.1]} 3. Nf3 {[%clk 0:04:49.1]} 3... Bb7 {[%clk 0:04:47.4]}
4. Nc3 {[%clk 0:04:48]} 4... h6 {[%clk 0:04:46.6]} 5. Bc4 {[%clk 0:04:46.9]}
5... d6 {[%clk 0:04:45.1]} 6. d5 {[%clk 0:04:45.8]} 6... e5 {[%clk 0:04:43.9]}
7. Be3 {[%clk 0:04:42.2]} 7... a6 {[%clk 0:04:42.3]} 8. O-O {[%clk 0:04:41.5]}
8... Nd7 {[%clk 0:04:40.5]} 9. h3 {[%clk 0:04:31.7]} 9... Ne7 {[%clk 0:04:39.6]}
10. Nd2 {[%clk 0:04:26.6]} 10... g5 {[%clk 0:04:38.6]} 11. f4 {[%clk 0:04:23.1]}
11... gxf4 {[%clk 0:04:35.4]} 12. Bxf4 {[%clk 0:04:22.1]} 12... exf4 {[%clk
0:04:34.4]} 13. Rxf4 {[%clk 0:04:21.4]} 13... Ng6 {[%clk 0:04:31.9]} 14. Rf5
{[%clk 0:04:18.8]} 14... Bg7 {[%clk 0:04:28.4]} 15. Qf3 {[%clk 0:04:15.9]} 15...
Nde5 {[%clk 0:04:27.3]} 16. Rxe5+ {[%clk 0:04:09.8]} 16... Nxe5 {[%clk
0:04:23.8]} 17. Qd3 {[%clk 0:04:04.8]} 17... Nxd3 {[%clk 0:04:22.2]} 0-1

[Event "Live Chess"]
[Site "Chess.com"]
[Date "2024.06.02"]
[Round "-"]
[White "OnlyTheHurf"]
[Black "elephantgerrald"]
[Result "1-0"]
[WhiteElo "1131"]
[BlackElo "892"]
[TimeControl "300"]
[EndTime "8:45:01 PDT"]
[Termination "OnlyTheHurf won by checkmate"]

1. c4 {[%clk 0:04:57.3]} 1... e5 {[%clk 0:04:58.6]} 2. g3 {[%clk 0:04:55.9]}
2... Nf6 {[%clk 0:04:56.3]} 3. Nc3 {[%clk 0:04:55.1]} 3... Bb4 {[%clk
0:04:54.8]} 4. Bg2 {[%clk 0:04:54.2]} 4... Bxc3 {[%clk 0:04:53.9]} 5. dxc3
{[%clk 0:04:53.4]} 5... Nc6 {[%clk 0:04:52.8]} 6. Nf3 {[%clk 0:04:51.6]} 6...
O-O {[%clk 0:04:51.2]} 7. Bg5 {[%clk 0:04:47]} 7... d6 {[%clk 0:04:48.5]} 8. Qc2
{[%clk 0:04:45.4]} 8... h6 {[%clk 0:04:37.7]} 9. Bxf6 {[%clk 0:04:44.2]} 9...
Qxf6 {[%clk 0:04:34.4]} 10. b4 {[%clk 0:04:43]} 10... a6 {[%clk 0:04:30]} 11. b5
{[%clk 0:04:39.5]} 11... axb5 {[%clk 0:04:29]} 12. cxb5 {[%clk 0:04:39.4]} 12...
Na5 {[%clk 0:04:22.9]} 13. a4 {[%clk 0:04:36.7]} 13... c6 {[%clk 0:04:20.7]} 14.
bxc6 {[%clk 0:04:33.7]} 14... Nxc6 {[%clk 0:04:18.2]} 15. O-O {[%clk 0:04:29.7]}
15... Bf5 {[%clk 0:04:15.5]} 16. Qb3 {[%clk 0:04:24.7]} 16... Rab8 {[%clk
0:03:56.6]} 17. a5 {[%clk 0:04:22.3]} 17... Qe6 {[%clk 0:03:49]} 18. Qb6 {[%clk
0:04:18]} 18... Be4 {[%clk 0:03:34]} 19. a6 {[%clk 0:04:10]} 19... bxa6 {[%clk
0:03:29.5]} 20. Qxa6 {[%clk 0:04:05.4]} 20... Qc8 {[%clk 0:03:10.7]} 21. Qxc8
{[%clk 0:04:02.9]} 21... Rbxc8 {[%clk 0:03:08.2]} 22. Ra4 {[%clk 0:03:55.1]}
22... Bxf3 {[%clk 0:03:06]} 23. Bxf3 {[%clk 0:03:53.8]} 23... Ne7 {[%clk
0:02:42.7]} 24. Rc1 {[%clk 0:03:49.4]} 24... Ng6 {[%clk 0:02:30.8]} 25. c4
{[%clk 0:03:39.6]} 25... Ne7 {[%clk 0:02:25.5]} 26. Ra5 {[%clk 0:03:34.5]} 26...
f6 {[%clk 0:02:17.5]} 27. c5 {[%clk 0:03:31.4]} 27... Nf5 {[%clk 0:02:12.5]} 28.
Bg4 {[%clk 0:03:28.2]} 28... Nd4 {[%clk 0:02:04.5]} 29. Bxc8 {[%clk 0:03:23.8]}
29... Nxe2+ {[%clk 0:02:03.3]} 30. Kg2 {[%clk 0:03:18.1]} 30... Nxc1 {[%clk
0:02:01.9]} 31. Be6+ {[%clk 0:03:16.3]} 31... Kh7 {[%clk 0:01:59.4]} 32. cxd6
{[%clk 0:03:15.6]} 32... Rd8 {[%clk 0:01:53.7]} 33. Rc5 {[%clk 0:03:09.7]} 33...
Rxd6 {[%clk 0:01:48.7]} 34. Rxc1 {[%clk 0:03:07.5]} 34... Rxe6 {[%clk
0:01:47.4]} 35. h4 {[%clk 0:03:04.3]} 35... g5 {[%clk 0:01:45.6]} 36. Rc7+
{[%clk 0:03:02.2]} 36... Kg6 {[%clk 0:01:44.3]} 37. Kh3 {[%clk 0:02:52.8]} 37...
gxh4 {[%clk 0:01:35.8]} 38. gxh4 {[%clk 0:02:52.7]} 38... h5 {[%clk 0:01:34.2]}
39. Rc8 {[%clk 0:02:48.2]} 39... f5 {[%clk 0:01:32.3]} 40. Rg8+ {[%clk
0:02:47.1]} 40... Kh6 {[%clk 0:01:30.2]} 41. Rh8+ {[%clk 0:02:43.2]} 41... Kg6
{[%clk 0:01:28.3]} 42. Rg8+ {[%clk 0:02:42.2]} 42... Kf7 {[%clk 0:01:25.7]} 43.
Rg5 {[%clk 0:02:39]} 43... Ra6 {[%clk 0:01:16.5]} 44. Rxf5+ {[%clk 0:02:37.1]}
44... Kg6 {[%clk 0:01:14.8]} 45. Rxe5 {[%clk 0:02:35.8]} 45... Ra3+ {[%clk
0:01:13.8]} 46. Re3 {[%clk 0:02:33.4]} 46... Rxe3+ {[%clk 0:01:13]} 47. fxe3
{[%clk 0:02:33.3]} 47... Kf5 {[%clk 0:01:12.5]} 48. Kg3 {[%clk 0:02:33.1]} 48...
Ke4 {[%clk 0:01:11.8]} 49. Kf2 {[%clk 0:02:28.8]} 49... Ke5 {[%clk 0:01:09.8]}
50. Kf3 {[%clk 0:02:28]} 50... Kf5 {[%clk 0:01:08.3]} 51. e4+ {[%clk 0:02:27]}
51... Ke5 {[%clk 0:01:07.5]} 52. Ke3 {[%clk 0:02:25.9]} 52... Kf6 {[%clk
0:01:06.3]} 53. Kf4 {[%clk 0:02:25.2]} 53... Kg6 {[%clk 0:01:04.6]} 54. e5
{[%clk 0:02:21.1]} 54... Kf7 {[%clk 0:01:01.8]} 55. Kf5 {[%clk 0:02:20.3]} 55...
Ke7 {[%clk 0:01:00]} 56. e6 {[%clk 0:02:18.6]} 56... Kf8 {[%clk 0:00:57.3]} 57.
Kf6 {[%clk 0:02:17.8]} 57... Ke8 {[%clk 0:00:56.1]} 58. e7 {[%clk 0:02:14.2]}
58... Kd7 {[%clk 0:00:53]} 59. Kf7 {[%clk 0:02:13.4]} 59... Kc6 {[%clk 0:00:52]}
60. e8=Q+ {[%clk 0:02:13]} 60... Kd5 {[%clk 0:00:51.9]} 61. Kf6 {[%clk
0:02:11.3]} 61... Kc4 {[%clk 0:00:51.8]} 62. Qxh5 {[%clk 0:02:10.4]} 62... Kd3
{[%clk 0:00:51.7]} 63. Qg5 {[%clk 0:02:10.3]} 63... Kc3 {[%clk 0:00:50.6]} 64.
h5 {[%clk 0:02:10.2]} 64... Kb4 {[%clk 0:00:49.4]} 65. h6 {[%clk 0:02:10.1]}
65... Kc4 {[%clk 0:00:48.5]} 66. h7 {[%clk 0:02:10]} 66... Kb4 {[%clk
0:00:47.4]} 67. h8=Q {[%clk 0:02:09.9]} 67... Kc3 {[%clk 0:00:46.6]} 68. Qe8
{[%clk 0:02:09.1]} 68... Kb3 {[%clk 0:00:45.9]} 69. Kg7 {[%clk 0:02:08.8]} 69...
Kc4 {[%clk 0:00:45.1]} 70. Qgd8 {[%clk 0:02:08.5]} 70... Kc5 {[%clk 0:00:44.1]}
71. Qdd7 {[%clk 0:02:08.4]} 71... Kb6 {[%clk 0:00:43.1]} 72. Qec8 {[%clk
0:02:08.3]} 72... Ka5 {[%clk 0:00:41.9]} 73. Qd1 {[%clk 0:02:06.3]} 73... Kb5
{[%clk 0:00:40.6]} 74. Qb1+ {[%clk 0:02:06.2]} 74... Ka5 {[%clk 0:00:39]} 75.
Qa8# {[%clk 0:02:06.1]} 1-0

[Event "Live Chess"]
[Site "Chess.com"]
[Date "2024.06.02"]
[Round "-"]
[White "Zhevzh1k7"]
[Black "McFim"]
[Result "0-1"]
[WhiteElo "1128"]
[BlackElo "1819"]
[TimeControl "300"]
[EndTime "8:45:07 PDT"]
[Termination "McFim won by checkmate"]

1. e4 {[%clk 0:04:57]} 1... c6 {[%clk 0:04:58.9]} 2. d4 {[%clk 0:04:53.3]} 2...
d5 {[%clk 0:04:58.8]} 3. Nc3 {[%clk 0:04:51.6]} 3... dxe4 {[%clk 0:04:57.5]} 4.
Nxe4 {[%clk 0:04:51.5]} 4... Nd7 {[%clk 0:04:56.6]} 5. Nf3 {[%clk 0:04:49.5]}
5... Ndf6 {[%clk 0:04:55]} 6. Ng3 {[%clk 0:04:41.9]} 6... Bg4 {[%clk 0:04:51.7]}
7. Be2 {[%clk 0:04:40.5]} 7... e6 {[%clk 0:04:50]} 8. h3 {[%clk 0:04:38.5]} 8...
Bxf3 {[%clk 0:04:48.1]} 9. Bxf3 {[%clk 0:04:37]} 9... Ne7 {[%clk 0:04:45.5]} 10.
O-O {[%clk 0:04:35.7]} 10... Ng6 {[%clk 0:04:42.6]} 11. Bg5 {[%clk 0:04:33.2]}
11... h6 {[%clk 0:04:39.5]} 12. Bxf6 {[%clk 0:04:31.7]} 12... Qxf6 {[%clk
0:04:37.8]} 13. Ne4 {[%clk 0:04:28.4]} 13... Qd8 {[%clk 0:04:36.2]} 14. Re1
{[%clk 0:04:21.2]} 14... Be7 {[%clk 0:04:32.8]} 15. Nc3 {[%clk 0:04:14.6]} 15...
Bf6 {[%clk 0:04:27.6]} 16. Ne2 {[%clk 0:04:02.4]} 16... O-O {[%clk 0:04:23.6]}
17. Qd3 {[%clk 0:03:59.5]} 17... Ne7 {[%clk 0:04:18.9]} 18. c3 {[%clk
0:03:57.3]} 18... Qc7 {[%clk 0:04:15.8]} 19. Ng3 {[%clk 0:03:53.8]} 19... Rad8
{[%clk 0:04:11.9]} 20. Ne4 {[%clk 0:03:51.8]} 20... Nd5 {[%clk 0:04:07]} 21. c4
{[%clk 0:03:46.7]} 21... Nf4 {[%clk 0:04:02.1]} 22. Qc3 {[%clk 0:03:35.7]} 22...
Bxd4 {[%clk 0:03:57]} 23. Qc2 {[%clk 0:03:29.2]} 23... c5 {[%clk 0:03:44.1]} 24.
Rad1 {[%clk 0:03:16.4]} 24... Qb6 {[%clk 0:03:40.1]} 25. b3 {[%clk 0:03:11.3]}
25... Ng6 {[%clk 0:03:35.5]} 26. Ng3 {[%clk 0:03:05.2]} 26... Qc7 {[%clk
0:03:28.6]} 27. Bh5 {[%clk 0:02:54.5]} 27... Qxg3 {[%clk 0:03:23.2]} 28. Kh1
{[%clk 0:02:40.8]} 28... Qg5 {[%clk 0:03:17.6]} 29. Bxg6 {[%clk 0:02:38.2]}
29... Qxg6 {[%clk 0:03:15.8]} 30. Qxg6 {[%clk 0:02:34.3]} 30... fxg6 {[%clk
0:03:15.7]} 31. Rxe6 {[%clk 0:02:28.9]} 31... Rxf2 {[%clk 0:03:13.4]} 32. Kh2
{[%clk 0:02:18.9]} 32... Rf6 {[%clk 0:02:59.8]} 33. Re7 {[%clk 0:02:13.7]} 33...
Rf7 {[%clk 0:02:56.1]} 34. Rxf7 {[%clk 0:02:09.9]} 34... Kxf7 {[%clk 0:02:54.7]}
35. Rf1+ {[%clk 0:02:08.7]} 35... Bf6 {[%clk 0:02:51.7]} 36. Re1 {[%clk
0:01:58.7]} 36... Rd2 {[%clk 0:02:48.9]} 37. a3 {[%clk 0:01:54.8]} 37... Rd3
{[%clk 0:02:47.1]} 38. b4 {[%clk 0:01:52.4]} 38... Rxa3 {[%clk 0:02:44.3]} 39.
bxc5 {[%clk 0:01:51.3]} 39... Rc3 {[%clk 0:02:31.2]} 40. Re4 {[%clk 0:01:48.7]}
40... a5 {[%clk 0:02:27.1]} 41. Re1 {[%clk 0:01:42.1]} 41... Rxc4 {[%clk
0:02:25.1]} 42. Rb1 {[%clk 0:01:39.7]} 42... Rxc5 {[%clk 0:02:19.9]} 43. Rxb7+
{[%clk 0:01:37.8]} 43... Be7 {[%clk 0:02:18.6]} 44. Ra7 {[%clk 0:01:36]} 44...
g5 {[%clk 0:02:14.4]} 45. Kg3 {[%clk 0:01:33]} 45... h5 {[%clk 0:02:12.5]} 46.
Kf3 {[%clk 0:01:31.8]} 46... g6 {[%clk 0:02:11]} 47. g4 {[%clk 0:01:29.9]} 47...
h4 {[%clk 0:02:07.9]} 48. Ke4 {[%clk 0:01:28.5]} 48... Ke6 {[%clk 0:02:05.8]}
49. Ra6+ {[%clk 0:01:24.9]} 49... Bd6 {[%clk 0:02:04.2]} 50. Kd4 {[%clk
0:01:22.9]} 50... Rb5 {[%clk 0:01:59.4]} 51. Kc4 {[%clk 0:01:21.3]} 51... Rb4+
{[%clk 0:01:58.3]} 52. Kc3 {[%clk 0:01:19.9]} 52... Ra4 {[%clk 0:01:54.1]} 53.
Kb3 {[%clk 0:01:15.8]} 53... Ra3+ {[%clk 0:01:52.9]} 54. Kb2 {[%clk 0:01:13.7]}
54... Rxh3 {[%clk 0:01:45.7]} 55. Rxa5 {[%clk 0:01:10.3]} 55... Bf4 {[%clk
0:01:42.3]} 56. Ra6+ {[%clk 0:01:07.8]} 56... Kf7 {[%clk 0:01:41.3]} 57. Ra7+
{[%clk 0:01:05]} 57... Kg8 {[%clk 0:01:40]} 58. Kc2 {[%clk 0:01:01.7]} 58... Rg3
{[%clk 0:01:37.8]} 59. Ra8+ {[%clk 0:00:59.7]} 59... Kg7 {[%clk 0:01:36.6]} 60.
Ra7+ {[%clk 0:00:59]} 60... Kh6 {[%clk 0:01:35.3]} 61. Ra8 {[%clk 0:00:55.7]}
61... Rxg4 {[%clk 0:01:31.3]} 62. Rh8+ {[%clk 0:00:55.3]} 62... Kg7 {[%clk
0:01:29.9]} 63. Re8 {[%clk 0:00:54.2]} 63... h3 {[%clk 0:01:28.3]} 64. Re7+
{[%clk 0:00:53.6]} 64... Kf6 {[%clk 0:01:26.8]} 65. Rb7 {[%clk 0:00:51.7]} 65...
h2 {[%clk 0:01:24.3]} 66. Rb6+ {[%clk 0:00:51.2]} 66... Kg7 {[%clk 0:01:21.3]}
67. Rb7+ {[%clk 0:00:49.1]} 67... Kh6 {[%clk 0:01:20.1]} 68. Rb1 {[%clk
0:00:42.3]} 68... Rg1 {[%clk 0:01:17.8]} 69. Rxg1 {[%clk 0:00:40.1]} 69...
hxg1=Q {[%clk 0:01:15.5]} 70. Kc3 {[%clk 0:00:40]} 70... Qd1 {[%clk 0:01:11.9]}
71. Kc4 {[%clk 0:00:39.9]} 71... Bh2 {[%clk 0:01:04.5]} 72. Kc5 {[%clk
0:00:39.7]} 72... Qd3 {[%clk 0:01:01.9]} 73. Kc6 {[%clk 0:00:39.6]} 73... g4
{[%clk 0:00:59.8]} 74. Kc5 {[%clk 0:00:39.5]} 74... g3 {[%clk 0:00:59.2]} 75.
Kb4 {[%clk 0:00:38.5]} 75... Kg5 {[%clk 0:00:58.9]} 76. Kc5 {[%clk 0:00:38.4]}
76... Kf4 {[%clk 0:00:58]} 77. Kb4 {[%clk 0:00:38.3]} 77... Qc2 {[%clk
0:00:56.7]} 78. Kb5 {[%clk 0:00:36.5]} 78... Qc3 {[%clk 0:00:55.3]} 79. Kb6
{[%clk 0:00:35.3]} 79... Qc4 {[%clk 0:00:54.2]} 80. Ka5 {[%clk 0:00:34.1]} 80...
Qb3 {[%clk 0:00:52.9]} 81. Ka6 {[%clk 0:00:33.1]} 81... Ke5 {[%clk 0:00:51]} 82.
Ka5 {[%clk 0:00:33]} 82... Kd5 {[%clk 0:00:49.9]} 83. Ka6 {[%clk 0:00:32.4]}
83... Kc6 {[%clk 0:00:48.5]} 84. Ka7 {[%clk 0:00:31.8]} 84... Qb7# {[%clk
0:00:47.1]} 0-1

[Event "Live Chess"]
[Site "Chess.com"]
[Date "2024.06.02"]
[Round "-"]
[White "willc-h99"]
[Black "MagnersCarlsberg2870"]
[Result "1-0"]
[WhiteElo "2546"]
[BlackElo "1746"]
[TimeControl "300"]
[EndTime "8:45:25 PDT"]
[Termination "willc-h99 won by resignation"]

1. d4 {[%clk 0:04:59]} 1... Nf6 {[%clk 0:04:58.4]} 2. Nc3 {[%clk 0:04:57.4]}
2... e6 {[%clk 0:04:56.6]} 3. g4 {[%clk 0:04:54.3]} 3... Bb4 {[%clk 0:04:54.9]}
4. Bg2 {[%clk 0:04:48.5]} 4... Nxg4 {[%clk 0:04:51.7]} 5. e4 {[%clk 0:04:47.2]}
5... h5 {[%clk 0:04:47]} 6. e5 {[%clk 0:04:42]} 6... Qh4 {[%clk 0:04:44.2]} 7.
Nh3 {[%clk 0:04:33.3]} 7... O-O {[%clk 0:04:40.4]} 8. Bg5 {[%clk 0:04:30.9]}
8... f6 {[%clk 0:04:38.9]} 9. Bxh4 {[%clk 0:04:29.4]} 9... Nxf2 {[%clk
0:04:34.5]} 10. Bxf2 {[%clk 0:04:28]} 10... Bxc3+ {[%clk 0:04:33.7]} 11. bxc3
{[%clk 0:04:27]} 1-0

[Event "Live Chess"]
[Site "Chess.com"]
[Date "2024.06.02"]
[Round "-"]
[White "ZatixMajor"]
[Black "friarnator"]
[Result "0-1"]
[WhiteElo "2039"]
[BlackElo "2210"]
[TimeControl "300"]
[EndTime "8:45:28 PDT"]
[Termination "friarnator won by resignation"]

1. c4 {[%clk 0:04:59.5]} 1... Nf6 {[%clk 0:04:59]} 2. g3 {[%clk 0:04:59]} 2...
g6 {[%clk 0:04:58.3]} 3. Bg2 {[%clk 0:04:58.9]} 3... Bg7 {[%clk 0:04:58.1]} 4.
Nc3 {[%clk 0:04:57.9]} 4... O-O {[%clk 0:04:57]} 5. e4 {[%clk 0:04:57.5]} 5...
d6 {[%clk 0:04:56.6]} 6. Nge2 {[%clk 0:04:57]} 6... c5 {[%clk 0:04:56.1]} 7. O-O
{[%clk 0:04:56.5]} 7... Nc6 {[%clk 0:04:55.7]} 8. d3 {[%clk 0:04:55.4]} 8... Rb8
{[%clk 0:04:53.5]} 9. a3 {[%clk 0:04:52.9]} 9... a6 {[%clk 0:04:52.7]} 10. Rb1
{[%clk 0:04:51.5]} 10... b5 {[%clk 0:04:51.8]} 11. b4 {[%clk 0:04:50.9]} 11...
cxb4 {[%clk 0:04:41.5]} 12. axb4 {[%clk 0:04:50.8]} 12... bxc4 {[%clk
0:04:39.9]} 13. dxc4 {[%clk 0:04:44.6]} 13... Rxb4 {[%clk 0:04:31.6]} 14. Rxb4
{[%clk 0:04:40.6]} 14... Nxb4 {[%clk 0:04:31.5]} 15. Nd4 {[%clk 0:04:38.8]}
15... Qc7 {[%clk 0:04:17.9]} 16. Qb3 {[%clk 0:04:35.2]} 16... Nd3 {[%clk
0:04:15.2]} 17. Ba3 {[%clk 0:04:29.6]} 17... Nc5 {[%clk 0:04:03.8]} 18. Qa2
{[%clk 0:04:18.2]} 18... Bb7 {[%clk 0:03:51.1]} 19. Rb1 {[%clk 0:04:12.9]} 19...
Ncxe4 {[%clk 0:03:45.1]} 20. Qc2 {[%clk 0:03:54.4]} 20... Qxc4 {[%clk
0:03:29.5]} 21. Rxb7 {[%clk 0:03:40.7]} 21... Qxc3 {[%clk 0:03:15.9]} 22. Bxe4
{[%clk 0:03:37.4]} 22... Nxe4 {[%clk 0:03:12.2]} 23. Qxe4 {[%clk 0:03:35.7]}
23... Qxa3 {[%clk 0:03:01.4]} 24. Nc6 {[%clk 0:03:12.5]} 24... e6 {[%clk
0:02:53.5]} 25. Qc4 {[%clk 0:03:10.9]} 25... d5 {[%clk 0:02:48.5]} 26. Qe2
{[%clk 0:03:04.6]} 26... Qc1+ {[%clk 0:02:43.1]} 0-1

[Event "Live Chess"]
[Site "Chess.com"]
[Date "2024.06.02"]
[Round "-"]
[White "beltmanjb"]
[Black "Pandreq"]
[Result "1-0"]
[WhiteElo "1734"]
[BlackElo "1221"]
[TimeControl "300"]
[EndTime "8:45:32 PDT"]
[Termination "beltmanjb won by resignation"]

1. d4 {[%clk 0:04:57.3]} 1... d5 {[%clk 0:04:58.9]} 2. c4 {[%clk 0:04:56.1]}
2... c6 {[%clk 0:04:58.4]} 3. Nf3 {[%clk 0:04:54.4]} 3... Nf6 {[%clk 0:04:57.1]}
4. g3 {[%clk 0:04:53.8]} 4... Bf5 {[%clk 0:04:54]} 5. Nc3 {[%clk 0:04:50.8]}
5... e6 {[%clk 0:04:53.2]} 6. Qb3 {[%clk 0:04:39.6]} 6... Qc8 {[%clk 0:04:50.5]}
7. Nh4 {[%clk 0:04:29.5]} 7... Bg6 {[%clk 0:04:23.2]} 8. Bg2 {[%clk 0:04:24.7]}
8... Nbd7 {[%clk 0:04:11.5]} 9. O-O {[%clk 0:04:18.4]} 9... Be7 {[%clk
0:04:06.5]} 10. Nxg6 {[%clk 0:04:10.8]} 10... hxg6 {[%clk 0:04:04.6]} 11. Bf4
{[%clk 0:04:09.7]} 11... Nb6 {[%clk 0:03:57.2]} 12. c5 {[%clk 0:03:56.1]} 12...
Nbd7 {[%clk 0:03:35.3]} 13. Qc2 {[%clk 0:03:50.3]} 13... b6 {[%clk 0:03:29.1]}
14. b4 {[%clk 0:03:47.6]} 14... bxc5 {[%clk 0:03:20.2]} 15. bxc5 {[%clk
0:03:43.6]} 15... Rb8 {[%clk 0:03:17.7]} 16. Bxb8 {[%clk 0:03:40.8]} 16... Nxb8
{[%clk 0:03:13.1]} 17. Rab1 {[%clk 0:03:38.5]} 17... Na6 {[%clk 0:03:08]} 18.
Qa4 {[%clk 0:03:26.7]} 18... Nxc5 {[%clk 0:02:32.5]} 19. dxc5 {[%clk 0:03:23.8]}
19... Bxc5 {[%clk 0:02:30.7]} 20. Rfc1 {[%clk 0:03:03.1]} 20... Bb6 {[%clk
0:02:22.2]} 21. e4 {[%clk 0:02:39.6]} 21... Ng4 {[%clk 0:02:00.8]} 22. Nd1
{[%clk 0:02:23.2]} 22... Nf6 {[%clk 0:01:44.2]} 23. Rxc6 {[%clk 0:02:15.3]}
23... Qd7 {[%clk 0:01:31.6]} 24. Rc8+ {[%clk 0:01:58.1]} 24... Ke7 {[%clk
0:01:24]} 25. Qxd7+ {[%clk 0:01:53.2]} 25... Nxd7 {[%clk 0:01:22.7]} 26. Rxh8
{[%clk 0:01:52.8]} 1-0